Cogmind - Beta 14 @@@ ROGUE MODE // 2024.10.26 @ 15:41:05 Player: WazdakkaGutsmek Result: Self-destructed Performance ------------- Evolutions (1) 500 Regions Visited (3) 600 Robots Destroyed (20) 100 Value Destroyed (506) 506 Prototype IDs (0) 0 Alien Tech Used (0) 0 Bonus (11) 11 TOTAL SCORE: 1717 Bonus ------- High Alert Combat Kills 11 Cogmind --------- Core Integrity 195/400 Matter 285/300 Energy 265/265 System Corruption 0% Temperature Cool (0) Movement Treading (160) Location -9/Storage Parts ------- > --- POWER (1) -------- Improved Ion Engine > --- PROPULSION (3) --- Light Treads Light Treads Light Treads > --- UTILITY (2) ------ Small Storage Unit > --- WEAPON (3) ------- Heavy Assault Rifle Heavy Assault Rifle > --- INVENTORY (8) ---- Ion Engine Light Treads Light Treads Light Treads Compact Wheel High-capacity Matter Pod (45) Authchip [R/Combat] Authchip [R/Combat] Peak State ------------ > --- POWER ------------ Improved Ion Engine > --- PROPULSION ------- Light Treads Light Treads Light Treads > --- UTILITY ---------- Small Storage Unit Light Armor Plating > --- WEAPON ----------- Heavy Assault Rifle Heavy Assault Rifle Heavy Assault Rifle > --- INVENTORY -------- Ion Engine Light Treads Light Treads Light Treads Compact Wheel High-capacity Matter Pod Authchip [R/Combat] Authchip [R/Combat] [Rating: 14] Favorites ----------- Power Ion Engine Engine Ion Engine Propulsion Light Treads Treads Light Treads Leg Aluminum Leg Utility Small Storage Unit Storage Small Storage Unit Protection Light Armor Plating Weapon Heavy Assault Rifle Energy Gun Medium Laser Ballistic Gun Heavy Assault Rifle Build | -11 -10 -9 -9 ------- Run | Yrd Mat Mat Sto Slots Evolved 2 | . . 2 . Power . | . . . . Propulsion 1 | . . 1 . Utility . | . . . . Weapon 1 | . . 1 . Parts Attached 12 | . 2 10 . Power 1 | . . 1 . Engine 1 | . . 1 . Core . | . . . . Reactor . | . . . . Propulsion 4 | . . 4 . Treads 4 | . . 4 . Leg . | . . . . Wheel . | . . . . Hover . | . . . . Flight . | . . . . Utility 2 | . 1 1 . Device . | . . . . Storage 1 | . 1 . . Processor . | . . . . Hackware . | . . . . Protection 1 | . . 1 . Artifact . | . . . . Weapon 5 | . 1 4 . Energy Gun . | . . . . Energy Cannon . | . . . . Ballistic Gun 5 | . 1 4 . Ballistic Cannon . | . . . . Launcher . | . . . . Special Weapon . | . . . . Impact Weapon . | . . . . Slashing Weapon . | . . . . Piercing Weapon . | . . . . Special Melee Weapon . | . . . . Unidentified Prototypes . | . . . . Parts Lost 5 | . 1 4 . Power . | . . . . Propulsion 2 | . . 2 . Utility 1 | . . 1 . Weapon 2 | . 1 1 . Highest Loss Streak 2 | . 1 2 . To Critical Strikes . | . . . . Average Slot Usage (%) 84 | . 90 81 . Engine 11 | . 14 11 . Treads 15 | . . 22 . Leg 12 | . 28 5 . Storage 16 | . 20 15 . Protection 2 | . . 3 . Energy Gun 10 | . 26 3 . Ballistic Gun 13 | . . 19 . Peak Build Rating 14 | . 8 14 . Average Rating 9 | . 7 10 . On Entrance 7 | 6 6 8 11 Naked Turns . | . . . . Heaviest Build 24 | 14 18 24 . Greatest Support 60 | 20 20 60 . Greatest Overweight (x) 5 | . . 5 . Average Overweight (x) . | . . . . Largest Inventory Capacity 8 | . 8 8 . Average Capacity 8 | . 8 8 . Most Carried 8 | . 8 8 . Average Carried 6 | . 6 6 . Final Capacity 8 | 8 8 8 8 Final Carried 8 | 6 6 8 8 Class Distribution -------------------- 50% | Mutant 40% | Scavenger-Mutant 9% | Scavenger-Tank Dominant Class ---------------- Mutant | -10/Materials Scavenger-Mutant | -9/Materials Scavenger-Mutant | -9/Storage Resources | -11 -10 -9 -9 ----------- Run | Yrd Mat Mat Sto Matter Collected 584 | 172 28 384 . Remotely . | . . . . Salvage Created 881 | . 285 596 . Parts 63 | . 13 50 . Haulers Intercepted 2 | . 1 1 . Recyclers Shooed 2 | . 1 1 . Parts Field Recycled . | . . . . Retrieved Matter . | . . . . Parts Self-Destructed . | . . . . Prevented . | . . . . Kills | -11 -10 -9 -9 ------- Run | Yrd Mat Mat Sto Combat Hostiles Destroyed 14 | . 3 11 . Guns 14 | . 3 11 . Classes Destroyed 8 | . 3 5 . Worker 1 | . . 1 . Builder 1 | . . 1 . Hauler 2 | . 1 1 . Recycler 2 | . 1 1 . Swarmer 3 | . . 3 . Grunt 5 | . 3 2 . Brawler 1 | . . 1 . Sentry 5 | . . 5 . Best Kill Streak 4 | . 4 4 . Combat Bots Only 2 | . 2 2 . Max Kills in Single Turn 2 | . 1 2 . Gunslinging . | . . . . Exploded . | . . . . Melee . | . . . . Uniques/NPCs Destroyed . | . . . . Combat | -11 -10 -9 -9 -------- Run | Yrd Mat Mat Sto Hostile Shots Fired 135 | . 27 108 . Missed 26 | . 7 19 . Damage Taken 1328 | . 241 1087 . Core 267 | . 62 205 . Absorbed by Shields . | . . . . Core Remaining (%) 87 | 100 75 . . Volleys Fired 77 | . 18 59 . Largest 3 | . 2 3 . Hottest 90 | . 90 70 . Shots Fired 159 | . 35 124 . Gun 159 | . 35 124 . Cannon . | . . . . Launcher . | . . . . Special . | . . . . Kinetic 103 | . 2 101 . Thermal 40 | . 17 23 . Explosive . | . . . . Electromagnetic 16 | . 16 . . Robot Hit Streak 21 | . 7 21 . Robot Miss Streak 5 | . 2 5 . Penetration Max . | . . . . Secondary Targets 2 | . 1 1 . Max Gunslinging Chain 1 | . 1 1 . Shots Hit Robots 103 | . 25 78 . Core Hits 31 | . 10 21 . Critical Kills . | . . . . Critical Parts Destroyed . | . . . . Critical Strikes 1 | . 1 . . Burn 1 | . 1 . . Melee Attacks . | . . . . Impact . | . . . . Slashing . | . . . . Piercing . | . . . . Sneak Attacks . | . . . . Combat Hostiles . | . . . . Follow-up Attacks . | . . . . Damage Inflicted 1448 | . 342 1106 . Guns 1448 | . 342 1106 . Cannons . | . . . . Explosions . | . . . . Melee . | . . . . Ramming . | . . . . Kinetic 932 | . 16 916 . Thermal 327 | . 137 190 . Explosive . | . . . . Electromagnetic 189 | . 189 . . Impact . | . . . . Slashing . | . . . . Piercing . | . . . . Highest Corruption . | . . . . Average Corruption . | . . . . Corruption Purged . | . . . . Corruption Blocked . | . . . . Overload Shots . | . . . . Overflow Damage . | . . . . Projectiles . | . . . . Explosions . | . . . . Melee . | . . . . Knockbacks . | . . . . Impact . | . . . . Kinetic . | . . . . Secondary . | . . . . Self-Inflicted Damage . | . . . . Shots . | . . . . Rammed . | . . . . Targets Rammed . | . . . . Kicked . | . . . . Crushed . | . . . . Highest Temperature 301 | . 301 169 . Average Temperature 78 | . 135 41 . Received Heat Transfer 510 | . 165 345 . Siege Activations . | . . . . Robots Corrupted . | . . . . Combat Hostiles . | . . . . Parts Fried 1 | . 1 . . Impact Corruptions . | . . . . Robots Melted . | . . . . Combat Hostiles . | . . . . Parts Melted 1 | . . 1 . Heat Transferred 1036 | . 481 555 . Parts Sabotaged . | . . . . Parts Stolen . | . . . . Parts Stripped . | . . . . Power Chain Reactions . | . . . . Alert | -11 -10 -9 -9 ------- Run | Yrd Mat Mat Sto Peak Influence 428 | . 72 428 . Initial 29 | . . 29 28 Average 156 | . 44 205 . Maximum Alert Level 2 | . . 2 . Low Security (%) 70 | . 100 57 . Level 1 26 | . . 38 . Level 2 2 | . . 4 . Level 3 . | . . . . Level 4 . | . . . . Level 5 . | . . . . High Security . | . . . . Max Security . | . . . . Squads Dispatched 3 | . 1 2 . Investigation 2 | . 1 1 . Extermination . | . . . . Reinforcement 1 | . . 1 . Assault . | . . . . Garrison . | . . . . Intercept . | . . . . Searches Triggered . | . . . . Construction Impeded . | . . . . Haulers Reinforced . | . . . . Active Scanning Responses . | . . . . Cargo Convoy Interrupts . | . . . . Stealth | -11 -10 -9 -9 --------- Run | Yrd Mat Mat Sto Distress Signals . | . . . . Communications Jammed . | . . . . Distress Signals . | . . . . Times Spotted 31 | . 7 24 . Peak Tracking Total 5 | . 5 5 . Tactical Retreats 1 | . . 1 . Traps | -11 -10 -9 -9 ------- Run | Yrd Mat Mat Sto Traps Triggered 1 | . 1 . . Indirectly . | . . . . Trap Hack Attempts . | . . . . Triggered . | . . . . Disarmed . | . . . . Reprogrammed . | . . . . Reused . | . . . . Traps Extracted . | . . . . Installed . | . . . . Triggered . | . . . . Machines | -11 -10 -9 -9 ---------- Run | Yrd Mat Mat Sto Machines Disabled 1 | . . 1 . Max in Single Turn 1 | . . 1 . Machines Repaired . | . . . . Machines Dismantled . | . . . . Machines Sabotaged . | . . . . Overloaded Fab Kills . | . . . . Hacking | -11 -10 -9 -9 --------- Run | Yrd Mat Mat Sto Machines Accessed 1 | . . 1 . Terminals 1 | . . 1 . Fabricators . | . . . . Repair Stations . | . . . . Recycling Units . | . . . . Scanalyzers . | . . . . Garrison Access . | . . . . Total Hacks 3 | . . 3 . Successful 1 | . . 1 . Failed 2 | . . 2 . Catastrophic 2 | . . 2 . Database Lockouts . | . . . . Manual 3 | . . 3 . Terminals 3 | . . 3 . Fabricators . | . . . . Repair Stations . | . . . . Recycling Units . | . . . . Scanalyzers . | . . . . Garrison Access . | . . . . Terminal Hacks 1 | . . 1 . Unreport Threat 1 | . . 1 . Fabricator Hacks . | . . . . Repair Station Hacks . | . . . . Recycling Unit Hacks . | . . . . Scanalyzer . | . . . . Garrison Access Hacks . | . . . . Unauthorized Hacks . | . . . . Terminals . | . . . . Fabricators . | . . . . Repair Stations . | . . . . Recycling Units . | . . . . Scanalyzers . | . . . . Garrison Access . | . . . . Data Cores Recovered . | . . . . Used . | . . . . Hacking Detections 1 | . . 1 . Full Trace Events 1 | . . 1 . Feedback Events . | . . . . Feedback Blocked . | . . . . Robot Schematics Acquired . | . . . . Robots Built . | . . . . Authchips . | . . . . Time . | . . . . Total Robot Build Rating . | . . . . Part Schematics Acquired . | . . . . Parts Built . | . . . . Authchips . | . . . . Time . | . . . . Total Part Build Rating . | . . . . Parts Repaired . | . . . . Time . | . . . . Parts Recycled . | . . . . Recycled Matter . | . . . . Retrieved Matter . | . . . . Retrieved Components . | . . . . Parts Scanalyzed . | . . . . Part Schematics Acquired . | . . . . Parts Damaged . | . . . . Bothacking | -11 -10 -9 -9 ------------ Run | Yrd Mat Mat Sto Used RIF Installer . | . . . . Robots Hacked . | . . . . Non-combat . | . . . . Combat . | . . . . Robot Hacks Applied . | . . . . Relay Couplers Released . | . . . . Fabnet Peak Effective % . | . . . . Robots Rewired . | . . . . Allies Hacked . | . . . . Hacks Repelled . | . . . . Allies | -11 -10 -9 -9 -------- Run | Yrd Mat Mat Sto Total Allies . | . . . . Largest Group . | . . . . Highest-Rated Group . | . . . . Highest-Rated Ally . | . . . . Total Orders . | . . . . Ally Attacks . | . . . . Total Damage . | . . . . Kills . | . . . . Allies Corrupted . | . . . . Allies Melted . | . . . . Intel | -11 -10 -9 -9 ------- Run | Yrd Mat Mat Sto Robot Analysis Total . | . . . . Derelict Logs Recovered . | . . . . Drone Launches . | . . . . Drone Recoveries . | . . . . Exploration | -11 -10 -9 -9 ------------- Run | Yrd Mat Mat Sto Turns Passed 600 | . 180 420 . Spaces Moved 242 | 1 101 140 . Core 1 | . . 1 . Treads 93 | . . 93 . Legs 148 | 1 101 46 . Wheels . | . . . . Hover . | . . . . Flight . | . . . . Fastest Speed 120 | 120 120 120 . Average Speed 136 | 120 120 147 . Slowest Speed 300 | 120 120 300 . Overloaded Moves . | . . . . Propulsion Burnouts . | . . . . Robots Hopped . | . . . . Cave-ins Triggered . | . . . . Exploration Rate (%) 13 | 3 26 21 2 Regions Visited 3 Branch Regions 1 Pre-discovered Areas . | . . . . Known Exits Taken . | . . . . Unknown Exits Taken 3 | 1 1 1 . Scrap Searched . | . . . . Spaces Dug . | . . . . Terrain Destroyed . | . . . . Melee . | . . . . Projectile . | . . . . AOE . | . . . . Terrain Rammed . | . . . . Walls Destroyed . | . . . . Machines Disabled . | . . . . Actions | -11 -10 -9 -9 --------- Run | Yrd Mat Mat Sto Total 361 | . 125 236 . Wait 24 | . . 24 . Move 239 | . 100 139 . Hop . | . . . . Pick Up 3 | . 3 . . Fast Attach 7 | . 1 6 . Attach 2 | . 1 1 . Detach 1 | . . 1 . Swap 3 | . . 3 . Drop 5 | . 2 3 . Fire 77 | . 18 59 . Melee . | . . . . Ram . | . . . . Kick . | . . . . Crush . | . . . . Escape Stasis . | . . . . Rewire . | . . . . Trap . | . . . . Miscellaneous . | . . . . Route ------- -11/Scrapyard -10/Materials -9/Materials (discovered 2 exits: [*Min] / [*Sto]) -9/Storage History --------- Turn | Location | Event 1 | -11/Scrapyard | Discovered new exit (range 0) 1 | -11/Scrapyard | Entered Materials 92 | -10/Materials | Discovered new exit (range 15) 181 | -10/Materials | Entered another Materials area 181 | -9/Materials | Evolved 2 slots: Propulsion x1, Weapon x1 305 | -9/Materials | Build established: Mutant 369 | -9/Materials | Discovered new exit (range 12) 530 | -9/Materials | Discovered new exit (range 8) 598 | -9/Materials | Core integrity fell below 50% 601 | -9/Materials | Entered Storage 601 | -9/Storage | Self-destructed Last Messages --------------- 00553_ R-06 Scavenger collects Ion Engine. 00561_ G-34 Mercenary destroyed. 00563_ Critical hit (Burn: +37). 00563_ Hvy. Assault Rifle destroyed. 00564_ Y-45 Defender destroyed. 00569_ K-01 Serf collects debris. 00574_ K-01 Serf destroyed. 00574_ U-05 Engineer destroyed. 00576_ K-01 Serf collects debris. 00582_ Connecting with Terminal... 00582_ Current location identified: Materials >>Alert(Purge) Purged threat record, alert level lowered. 00582_ ALERT: Suspicious activity at Terminal M001. Dispatching Investigation squad. 00584_ Acquired 81 matter. 00585_ K-01 Serf collects debris. 00597_ Lgt. Armor Plating destroyed. LOCATION=UNKNOWN GOAL=ESCAPE Map ----- +----------------------------------------------------+ | | | | | | | | | | | | | | | | | | | | | | | | | | | | | | | | | | | | | | | ?????????????????????????????????????? | | ?????????????????????????????????????? | | ?????????????????????????????????????? | | ?????????????????????????????????????? | | ?????????????###############?????????? | | ?????????? #?????????? | | ?????????? @ #?????????? | | ?????????? #?????????? | | ?????????????########+######?????????? | | ?????????????????????????????????????? | | ?????????????????????????????????????? | | ?????????????????????????????????????? | | ?????????????????????????????????????? | | ?????????????????????????????????????? | | ?????????????????????????????????????? | | ?????????????????????????????????????? | | ?????????????????????????????????????? | | ?????????????????????????????????????? | | ?????????????????????????????????????? | | ?????????????????????????????????????? | | ?????????????????????????????????????? | | ?????????????????????????????????????? | | ?????????????????????????????????????? | | ?????????????????????????????????????? | | ?????????????????????????????????????? | | ?????????????????????????????????????? | | ?????????????????????????????????????? | | ?????????????????????????????????????? | | ?????????????????????????????????????? | | ?????????????????????????????????????? | | ?????????????????????????????????????? | +----------------------------------------------------+ Best States ------------- Heat Dissipation 28 Energy Generation 12 Energy Capacity 265 Matter Stores 302 Matter Capacity 500 Sight Range 16 Terrain Scan Density 10 Armor Coverage 150 Evasion (%) 55 Recoil Reduction 3 Authchip Count 2 Item Schematics ----------------- None Robot Schematics ------------------ None Fabricated ------------ Nothing Alien Tech Used ----------------- None Achievements -------------- None Challenges ------------ None Game ------ Seed StorageMediumInterpreter Manual? 0 Play Time 00:04:47 Cumulative 84.6 hours Start 2024.10.26 @ 15:36:21 End 2024.10.26 @ 15:41:05 Sessions 1 Manual Loads 0 Difficulty Rogue Special Mode None Game No. 80 Rogue 62 Adventurer 16 Explorer 2 Win Type - Total 1 Types 1/0/0/0/0/0/0/0/0 Lore% 21 Gallery% 48 Achievement% 42 Wizard Run 0 Options --------- Layout 2 ASCII 0 Keyboard 0 Movement Mouse Keybinds 1 Fullscreen 2 Font 24/Terminus Map View 50x44 Zoom Use 0% Tactical HUD 1 Map Filters NONE Filters NONE Steam X RUN: 51a7bc57-b9ba-45b0-a664-f0402b70c76b